fUSD/lending_fUSD_20250716
["ID","MTS","AMOUNT","RATE_DAILY","PERIOD"]
[372502235,1752663149945,-1196.04,0.00023013,2]
[372502236,1752663149956,-5256.36,0.00023013,2]
[372502237,1752663149966,-570.67,0.00023013,2]
[372502238,1752663149977,-460.0,0.00023013,2]
[372502239,1752663149988,-460.0,0.00023013,2]
[372502240,1752663149999,-1199.05,0.00023013,2]
[372502241,1752663150010,-1873.93,0.00023013,2]
[372502242,1752663150020,-608.82,0.00023013,2]
[372502243,1752663150031,-6048.28,0.00023013,2]
[372502244,1752663150042,-647.56,0.00023013,2]
[372502245,1752663150053,-25853.72,0.00023013,2]
[372502246,1752663150065,-3826.55,0.00023013,2]
[372502247,1752663150075,-679.82,0.00023013,2]
[372502248,1752663150086,-644.0,0.00023013,2]
[372502249,1752663150097,-4984.48,0.00023013,2]
[372502250,1752663150107,-1010.1,0.00023013,2]
[372502251,1752663150117,-587.74,0.00023013,2]
[372502252,1752663150128,-1216.26,0.00023013,2]
[372502253,1752663150138,-2657.96,0.00023013,2]
[372502254,1752663150149,-2675.67,0.00023013,2]
[372502255,1752663150160,-2707.25,0.00023013,2]
[372502256,1752663150172,-1531.63,0.00023013,2]
[372502257,1752663150182,-460.0,0.00023013,2]
[372502258,1752663150194,-807.97,0.00023013,2]
[372502259,1752663150213,-460.0,0.00023013,2]
[372502260,1752663150224,-10398.73,0.00023013,2]
[372502261,1752663150235,-2892.99,0.00023013,2]
[372502262,1752663150246,-3663.1,0.00023013,2]
[372502263,1752663150257,-460.0,0.00023013,2]
[372502264,1752663150267,-6155.9,0.00023013,2]
[372502265,1752663150277,-2417.79,0.00023013,2]
[372502266,1752663150287,-783.37,0.00023013,2]
[372502267,1752663150298,-1645.27,0.00023013,2]
[372502268,1752663150309,-5760.76,0.00023013,2]
[372502269,1752663150319,-2977.53,0.00023013,2]
[372502270,1752663150329,-1156.71,0.00023013,2]
[372502271,1752663150339,-4994.77,0.00023013,2]
[372502272,1752663150350,-2707.06,0.00023013,2]
[372502273,1752663150360,-460.0,0.00023013,2]
[372502274,1752663150371,-828.48,0.00023013,2]
[372502275,1752663150382,-697.34,0.00023013,2]
[372502276,1752663150392,-1737.41,0.00023013,2]
[372502277,1752663150402,-1860.1,0.00023013,2]
[372502278,1752663150413,-618.42,0.00023013,2]
[372502279,1752663150423,-3082.79,0.00023013,2]
[372502280,1752663150434,-460.0,0.00023013,2]
[372502281,1752663150445,-763.37,0.00023013,2]
[372502282,1752663150456,-5360.04,0.00023013,2]
[372502283,1752663150466,-1544.88,0.00023013,2]
[372502284,1752663150767,-532.67,0.00023013,2]
[372502285,1752663150777,-566.67,0.00023013,2]
[372502286,1752663150787,-1351.27,0.00023013,2]
[372502287,1752663150797,-1854.73,0.00023013,2]
[372502288,1752663150808,-6960.91,0.00023013,2]
[372502289,1752663150818,-1871.79,0.00023013,2]
[372502290,1752663150827,-498.31,0.00023013,2]
[372502291,1752663150838,-935.71,0.00023013,2]
[372502292,1752663150848,-2952.62,0.00023013,2]
[372502293,1752663150858,-3727.42,0.00023013,2]
[372502294,1752663150868,-4520.63,0.00023013,2]
[372502295,1752663150878,-1354.22,0.00023013,2]
[372502296,1752663150888,-1210.46,0.00023013,2]
[372502297,1752663150898,-647.88,0.00023013,2]
[372502298,1752663150908,-460.0,0.00023013,2]
[372502299,1752663150918,-1674.69,0.00023013,2]
[372502300,1752663150930,-460.0,0.00023013,2]
[372502301,1752663150939,-1807.76,0.00023013,2]
[372502302,1752663150949,-544.05,0.00023013,2]
[372502303,1752663150959,-1562.68,0.00023013,2]
[372502304,1752663150969,-804.49,0.00023013,2]
[372502305,1752663150979,-460.0,0.00023013,2]
[372502306,1752663150989,-460.0,0.00023013,2]
[372502307,1752663150999,-460.0,0.00023013,2]
[372502308,1752663151009,-2967.28,0.00023013,2]
[372502309,1752663151019,-619.88,0.00023013,2]
[372502310,1752663151030,-460.0,0.00023013,2]
[372502311,1752663151040,-1331.59,0.00023013,2]
[372502312,1752663151050,-4930.79,0.00023013,2]
[372502313,1752663151060,-1756.27,0.00023013,2]
[372502314,1752663151070,-460.0,0.00023013,2]
[372502315,1752663151080,-2884.75,0.00023013,2]
[372502316,1752663151090,-1372.2,0.00023013,2]
[372502317,1752663151100,-3471.77,0.00023013,2]
[372502318,1752663151110,-4338.23,0.00023013,2]
[372502319,1752663151120,-1048.9,0.00023013,2]
[372502320,1752663151130,-1304.13,0.00023013,2]
[372502321,1752663151140,-589.94,0.00023013,2]
[372502322,1752663151150,-861.69,0.00023013,2]
[372502323,1752663151159,-460.0,0.00023013,2]
[372502324,1752663151170,-5916.53,0.00023013,2]
[372502325,1752663151180,-771.65,0.00023013,2]
[372502326,1752663151190,-2011.92,0.00023013,2]
[372502327,1752663151201,-469.09,0.00023013,2]
[372502328,1752663151213,-18520.14,0.00023013,2]
[372502329,1752663151222,-1267.95,0.00023013,2]
[372502330,1752663151232,-1896.91,0.00023013,2]
[372502331,1752663151241,-6378.4,0.00023013,2]
[372502332,1752663151253,-624.77,0.00023013,2]
[372502333,1752663151263,-6594.98,0.00023013,2]
[372502334,1752663151273,-4665.3,0.00023013,2]
[372502335,1752663151283,-9546.24,0.00023013,2]
[372502336,1752663151294,-1113.8,0.00023013,2]
[372502337,1752663151304,-4540.32,0.00023013,2]
[372502338,1752663151315,-460.0,0.00023013,2]
[372502339,1752663151324,-575.28,0.00023013,2]
[372502340,1752663151334,-1746.59,0.00023013,2]
[372502341,1752663151344,-460.0,0.00023013,2]
[372502342,1752663151354,-2605.38,0.00023013,2]
[372502343,1752663151363,-484.92,0.00023013,2]
[372502344,1752663151373,-4658.6,0.00023013,2]
[372502345,1752663151382,-2501.59,0.00023013,2]
[372502346,1752663151392,-7774.07,0.00023013,2]
[372502347,1752663151402,-570.76,0.00023013,2]
[372502348,1752663151412,-2763.84,0.00023013,2]
[372502349,1752663151423,-5927.89,0.00023013,2]
[372502350,1752663151432,-3322.94,0.00023013,2]
[372502351,1752663151443,-460.0,0.00023013,2]
[372502352,1752663151452,-460.0,0.00023013,2]
[372502353,1752663151462,-7494.33,0.00023013,2]
[372502354,1752663151472,-1011.46,0.00023013,2]
[372502355,1752663151482,-16963.12,0.00023013,2]
[372502356,1752663151492,-1367.25,0.00023013,2]
[372502357,1752663151501,-2065.11,0.00023013,2]
[372502358,1752663151511,-5953.02,0.00023013,2]
[372502359,1752663151520,-3212.42,0.00023013,2]
[372502360,1752663151530,-21344.53,0.00023013,2]
[372502361,1752663151540,-1014.23,0.00023013,2]
[372502362,1752663151550,-5650.16,0.00023013,2]
[372502363,1752663151559,-476.32,0.00023013,2]
[372502364,1752663151569,-2587.67,0.00023013,2]
[372502365,1752663151579,-5415.43,0.00023013,2]
[372502366,1752663151589,-4486.27,0.00023013,2]
[372502367,1752663151598,-635.25,0.00023013,2]
[372502368,1752663151608,-1538.9,0.00023013,2]
[372502369,1752663151618,-2685.11,0.00023013,2]
[372502370,1752663151628,-2744.51,0.00023013,2]
[372502371,1752663151638,-460.0,0.00023013,2]
[372502372,1752663151647,-1047.77,0.00023013,2]
[372502373,1752663151657,-1189.82,0.00023013,2]
[372502374,1752663151667,-802.61,0.00023013,2]
[372502375,1752663151677,-460.0,0.00023013,2]
[372502376,1752663151686,-504.66,0.00023013,2]
[372502377,1752663151696,-573.37,0.00023013,2]
[372502378,1752663151705,-8020.77,0.00023013,2]
[372502379,1752663151714,-5279.75,0.00023013,2]
[372502380,1752663151724,-1356.57,0.00023013,2]
[372502381,1752663151734,-1204.94,0.00023013,2]
[372502382,1752663151743,-460.0,0.00023013,2]
[372502383,1752663151752,-32484.29,0.00023013,2]
[372502384,1752663151762,-1007.81,0.00023013,2]
[372502385,1752663151772,-676.02,0.00023013,2]
[372502386,1752663151782,-3572.47,0.00023013,2]
[372502387,1752663151792,-460.0,0.00023013,2]
[372502388,1752663151802,-460.0,0.00023013,2]
[372502389,1752663151812,-460.0,0.00023013,2]
[372502390,1752663151821,-1061.14,0.00023013,2]
[372502391,1752663151830,-19195.94,0.00023013,2]
[372502392,1752663151839,-684.08,0.00023013,2]
[372502393,1752663151849,-14730.83,0.00023013,2]
[372502394,1752663151859,-3262.8,0.00023013,2]
[372502395,1752663151869,-460.0,0.00023013,2]
[372502396,1752663151879,-612.3,0.00023013,2]
[372502397,1752663151888,-1225.77,0.00023013,2]
[372502398,1752663151898,-1692.42,0.00023013,2]
[372502399,1752663151908,-3566.5,0.00023013,2]
[372502400,1752663151918,-628.29,0.00023013,2]
[372502401,1752663151928,-5682.68,0.00023013,2]
[372502402,1752663151939,-460.0,0.00023013,2]
[372502403,1752663151948,-460.0,0.00023013,2]
[372502404,1752663151958,-22442.02,0.00023013,2]
[372502405,1752663151968,-3509.68,0.00023013,2]
[372502406,1752663151978,-460.0,0.00023013,2]
[372502407,1752663151988,-686.39,0.00023013,2]
[372502408,1752663151998,-1807.34,0.00023013,2]
[372502409,1752663152008,-4110.38,0.00023013,2]
[372502410,1752663152018,-460.0,0.00023013,2]
[372502411,1752663152028,-1598.24,0.00023013,2]
[372502412,1752663152038,-460.0,0.00023013,2]
[372502413,1752663152047,-1745.31,0.00023013,2]
[372502414,1752663152057,-949.55,0.00023013,2]
[372502415,1752663152067,-1841.85,0.00023013,2]
[372502416,1752663152077,-2472.8,0.00023013,2]
[372502417,1752663152087,-4959.45,0.00023013,2]
[372502418,1752663152097,-3547.98,0.00023013,2]
[372502419,1752663152106,-58694.54,0.00023013,2]
[372502420,1752663152116,-2993.43,0.00023013,2]
[372502421,1752663152126,-5628.71,0.00023013,2]
[372502422,1752663152135,-1447.83,0.00023013,2]
[372502423,1752663152145,-460.0,0.00023013,2]
[372502424,1752663152154,-603.39,0.00023013,2]
[372502425,1752663152164,-1683.09,0.00023013,2]
[372502426,1752663152174,-1096.81,0.00023013,2]
[372502427,1752663152184,-2285.96,0.00023013,2]
[372502428,1752663152194,-483.36,0.00023013,2]
[372502429,1752663152207,-460.0,0.00023013,2]
[372502430,1752663152216,-1319.97,0.00023013,2]
[372502431,1752663152226,-5147.01,0.00023013,2]
[372502432,1752663152236,-1144.35,0.00023013,2]
[372502433,1752663152246,-8010.56,0.00023013,2]
[372502434,1752663152256,-639.1,0.00023013,2]
[372502435,1752663152266,-739.23,0.00023013,2]
[372502436,1752663152277,-460.0,0.00023013,2]
[372502437,1752663152288,-6205.36,0.00023013,2]
[372502438,1752663152298,-510.71,0.00023013,2]
[372502439,1752663152307,-2249.11,0.00023013,2]
[372502440,1752663152317,-460.0,0.00023013,2]
[372502441,1752663152327,-4164.71,0.00023013,2]
[372502442,1752663152336,-6769.38,0.00023013,2]
[372502443,1752663152346,-2022.49,0.00023013,2]
[372502444,1752663152355,-1115.74,0.00023013,2]
[372502445,1752663152365,-460.0,0.00023013,2]
[372502446,1752663152375,-460.0,0.00023013,2]
[372502447,1752663152384,-795.42,0.00023013,2]
[372502448,1752663152394,-485.08,0.00023013,2]
[372502449,1752663152404,-2986.83,0.00023013,2]
[372502450,1752663152413,-460.0,0.00023013,2]
[372502451,1752663152423,-830.15,0.00023013,2]
[372502452,1752663152432,-619.04,0.00023013,2]
[372502453,1752663152442,-1181.41,0.00023013,2]
[372502454,1752663152451,-3400.85,0.00023013,2]
[372502455,1752663152461,-1807.42,0.00023013,2]
[372502456,1752663152470,-460.0,0.00023013,2]
[372502457,1752663152480,-460.0,0.00023013,2]
[372502458,1752663152489,-2724.38,0.00023013,2]
[372502459,1752663152498,-135275.72,0.00023013,2]
[372502460,1752663152508,-1356.39,0.00023013,2]
[372502461,1752663152517,-3360.53,0.00023013,2]
[372502462,1752663152527,-153.69561645,0.00023013,2]
[372502463,1752663152537,-4311.63,0.00023013,2]
[372502464,1752663152546,-7249.88,0.00023013,2]
[372502465,1752663152555,-1607.81,0.00023013,2]
[372502466,1752663152565,-469.05,0.00023013,2]
[372502467,1752663152574,-878.69,0.00023013,2]
[372502468,1752663152584,-1218.65,0.00023013,2]
[372502469,1752663152594,-10952.53,0.00023013,2]
[372502470,1752663152604,-908.48,0.00023013,2]
[372502471,1752663152614,-2188.41,0.00023013,2]
[372502472,1752663152623,-1585.43,0.00023013,2]
[372502473,1752663152633,-460.0,0.00023013,2]
[372502474,1752663152643,-6933.38,0.00023013,2]
[372502475,1752663152652,-7163.36,0.00023013,2]
[372502476,1752663152661,-460.0,0.00023013,2]
[372502477,1752663152671,-460.0,0.00023013,2]
[372502478,1752663152681,-13647.01,0.00023013,2]
[372502479,1752663152691,-6833.92,0.00023013,2]
[372502480,1752663152700,-5595.33,0.00023013,2]
[372502481,1752663152709,-2582.73,0.00023013,2]
[372502482,1752663152719,-8217.22,0.00023013,2]
[372502483,1752663152728,-4826.81,0.00023013,2]
[372502484,1752663152738,-1673.31,0.00023013,2]
[372502485,1752663152747,-743.27,0.00023013,2]
[372502486,1752663152757,-1251.22,0.00023013,2]
[372502487,1752663152766,-6145.91,0.00023013,2]
[372502488,1752663152776,-1655.82,0.00023013,2]
[372502489,1752663152786,-3760.87,0.00023013,2]
[372502490,1752663152796,-589.02,0.00023013,2]
[372502491,1752663152805,-460.0,0.00023013,2]
[372502492,1752663152815,-4288.94,0.00023013,2]
[372502493,1752663152825,-1267.17,0.00023013,2]
[372502494,1752663152835,-13788.05,0.00023013,2]
[372502495,1752663152845,-1974.88,0.00023013,2]
[372502496,1752663152855,-7127.48,0.00023013,2]
[372502497,1752663152864,-5381.58,0.00023013,2]
[372502498,1752663152874,-1882.82,0.00023013,2]
[372502499,1752663152884,-464.21,0.00023013,2]
[372502500,1752663152894,-1745.67,0.00023013,2]
[372502501,1752663152904,-2017.87,0.00023013,2]
[372502502,1752663152913,-6507.01,0.00023013,2]
[372502503,1752663152923,-2383.17,0.00023013,2]
[372502504,1752663152933,-460.0,0.00023013,2]
[372502505,1752663152943,-7346.25,0.00023013,2]
[372502506,1752663152953,-16919.72,0.00023013,2]
[372502507,1752663152963,-460.0,0.00023013,2]
[372502508,1752663152973,-460.0,0.00023013,2]
[372502509,1752663152982,-1542.47,0.00023013,2]
[372502510,1752663152992,-3978.63,0.00023013,2]
[372502511,1752663153003,-480.26,0.00023013,2]
[372502512,1752663153013,-925.97,0.00023013,2]
[372502513,1752663153023,-10810.3,0.00023013,2]
[372502514,1752663153034,-612.19,0.00023013,2]
[372502515,1752663153045,-1020.48,0.00023013,2]
[372502516,1752663153055,-1531.25,0.00023013,2]
[372502517,1752663153065,-4266.26,0.00023013,2]
[372502518,1752663153076,-2510.73,0.00023013,2]
[372502519,1752663153086,-460.0,0.00023013,2]
[372502520,1752663153097,-460.0,0.00023013,2]
[372502521,1752663153228,-2857.59,0.00023013,2]
[372502522,1752663153239,-1572.04,0.00023013,2]
[372502523,1752663153250,-383.0,0.00023014,7]
[372502524,1752663153259,-849.0,0.00023014,7]
[372502525,1752663153268,-383.0,0.00023014,7]
[372502526,1752663153279,-849.0,0.00023014,7]
[372502527,1752663153289,-306.18262687,0.00023021,2]
[372502528,1752663153299,-750.91568301,0.00023068,2]
[372502529,1752663153310,-1500.0,0.00023068,2]
[372502530,1752663153320,-997.38567652,0.00023068,2]
[372502531,1752663153331,-1500.0,0.00023068,2]
[372502532,1752663153340,-1009.18292601,0.00023068,2]
[372502533,1752663153350,-22796.6308571,0.00023134,2]
[372502534,1752663153359,-281.86100719,0.00023134,2]
[372502535,1752663153369,-500.0,0.0002315,2]
[372502536,1752663153379,-546.0,0.0002315,2]
[372502537,1752663153389,-500.0,0.0002315,2]
[372502538,1752663153399,-500.0,0.0002315,2]
[372502539,1752663153409,-455.0,0.0002315,2]
[372502540,1752663153419,-500.0,0.0002315,2]
[372502541,1752663153429,-474.0,0.0002315,2]
[372502542,1752663153440,-500.0,0.0002315,2]
[372502543,1752663153450,-5123.0,0.0002315,2]
[372502544,1752663153460,-539.0,0.0002315,2]
[372502545,1752663153471,-500.0,0.0002315,2]
[372502546,1752663153481,-500.0,0.0002315,2]
[372502547,1752663153492,-543.0,0.0002315,2]
[372502548,1752663153502,-1846.0,0.0002315,2]
[372502549,1752663153511,-800.0,0.0002315,2]
[372502550,1752663153520,-1607.01,0.0002315,2]
[372502551,1752663153529,-1539.29,0.0002315,2]
[372502552,1752663153538,-460.0,0.0002315,2]
[372502553,1752663153547,-460.0,0.0002315,2]
[372502554,1752663153557,-519.13,0.0002315,2]
[372502555,1752663153566,-460.0,0.0002315,2]
[372502556,1752663153576,-676.6,0.0002315,2]
[372502557,1752663153585,-460.0,0.0002315,2]
[372502558,1752663153595,-460.0,0.0002315,2]
[372502559,1752663153606,-460.0,0.0002315,2]
[372502560,1752663153616,-505.45,0.0002315,2]
[372502561,1752663153626,-765.61,0.0002315,2]
[372502562,1752663153635,-522.62,0.0002315,2]
[372502563,1752663153645,-460.0,0.0002315,2]
[372502564,1752663153654,-538.58,0.0002315,2]
[372502565,1752663153664,-460.0,0.0002315,2]
[372502566,1752663153674,-460.0,0.0002315,2]
[372502567,1752663153684,-460.0,0.0002315,2]
[372502568,1752663153694,-924.61,0.0002315,2]
[372502569,1752663153704,-609.32,0.0002315,2]
[372502570,1752663153715,-694.23,0.0002315,2]
[372502571,1752663153725,-832.33,0.0002315,2]
[372502572,1752663153735,-832.33,0.0002315,2]
[372502573,1752663153745,-460.0,0.0002315,2]
[372502574,1752663153755,-983.47,0.0002315,2]
[372502575,1752663153765,-460.0,0.0002315,2]
[372502576,1752663153774,-597.48,0.0002315,2]
[372502577,1752663153783,-465.36,0.0002315,2]
[372502578,1752663153794,-935.9,0.0002315,2]
[372502579,1752663153803,-891.24,0.0002315,2]
[372502580,1752663153813,-644.94,0.0002315,2]
[372502581,1752663153822,-954.44,0.0002315,2]
[372502582,1752663153832,-460.0,0.0002315,2]
[372502583,1752663153842,-731.16,0.0002315,2]
[372502584,1752663153853,-833.42,0.0002315,2]
[372502585,1752663153863,-523.46,0.0002315,2]
[372502586,1752663153874,-460.0,0.0002315,2]
[372502587,1752663153884,-500.0,0.0002315,5]
[372502588,1752663153894,-460.0,0.0002315,2]
[372502589,1752663153904,-460.0,0.0002315,2]
[372502590,1752663153914,-774.89,0.0002315,2]
[372502591,1752663153924,-488.59,0.0002315,2]
[372502592,1752663153934,-518.16,0.0002315,2]
[372502593,1752663153944,-460.0,0.0002315,2]
[372502594,1752663153954,-460.0,0.0002315,2]
[372502595,1752663153964,-876.74,0.0002315,2]
[372502596,1752663153973,-1277.44,0.0002315,2]
[372502597,1752663153984,-460.0,0.0002315,2]
[372502598,1752663153993,-737.68,0.0002315,2]
[372502599,1752663154003,-460.0,0.0002315,2]
[372502600,1752663154012,-566.92,0.0002315,2]
[372502601,1752663154021,-460.0,0.0002315,2]
[372502602,1752663154031,-819.52,0.0002315,2]
[372502603,1752663154041,-529.96,0.0002315,2]
[372502604,1752663154051,-460.0,0.0002315,2]
[372502605,1752663154061,-460.0,0.0002315,2]
[372502606,1752663154071,-460.0,0.0002315,2]
[372502607,1752663154081,-509.23,0.0002315,2]
[372502608,1752663154091,-460.0,0.0002315,2]
[372502609,1752663154100,-460.0,0.0002315,2]
[372502610,1752663154110,-732.88,0.0002315,2]
[372502611,1752663154120,-992.29,0.0002315,2]
[372502612,1752663154130,-1012.49,0.0002315,2]
[372502613,1752663154140,-518.81,0.0002315,2]
[372502614,1752663154150,-460.0,0.0002315,2]
[372502615,1752663154160,-460.0,0.0002315,2]
[372502616,1752663154172,-1830.19,0.0002315,2]
[372502617,1752663154182,-1118.14,0.0002315,2]
[372502618,1752663154192,-460.0,0.0002315,2]
[372502619,1752663154204,-698.13,0.0002315,2]
[372502620,1752663154215,-536.27,0.0002315,2]
[372502621,1752663154224,-1149.74,0.0002315,2]
[372502622,1752663154235,-460.0,0.0002315,2]
[372502623,1752663154246,-1545.31,0.0002315,2]
[372502624,1752663154255,-460.0,0.0002315,2]
[372502625,1752663154266,-460.0,0.0002315,2]
[372502626,1752663154277,-460.0,0.0002315,2]
[372502627,1752663154288,-726.17,0.0002315,2]
[372502628,1752663154298,-460.0,0.0002315,2]
[372502629,1752663154308,-1284.09,0.0002315,2]
[372502630,1752663154319,-1215.86,0.0002315,2]
[372502631,1752663154329,-501.15,0.0002315,2]
[372502632,1752663154340,-761.3,0.0002315,2]
[372502633,1752663154351,-460.0,0.0002315,2]
[372502634,1752663154361,-460.0,0.0002315,2]
[372502635,1752663154371,-639.95,0.0002315,2]
[372502636,1752663154381,-460.0,0.0002315,2]
[372502637,1752663154391,-645.67,0.0002315,2]
[372502638,1752663154401,-1102.51,0.0002315,2]
[372502639,1752663154412,-482.63,0.0002315,2]
[372502640,1752663154423,-460.0,0.0002315,2]
[372502641,1752663154434,-555.69,0.0002315,2]
[372502642,1752663154445,-486.85,0.0002315,2]
[372502643,1752663154456,-460.0,0.0002315,2]
[372502644,1752663154466,-460.0,0.0002315,2]
[372502645,1752663154477,-772.4,0.0002315,2]
[372502646,1752663154488,-1307.09,0.0002315,2]
[372502647,1752663154498,-782.15,0.0002315,2]
[372502648,1752663154508,-966.62,0.0002315,2]
[372502649,1752663154518,-752.28,0.0002315,2]
[372502650,1752663154529,-563.43,0.0002315,2]
[372502651,1752663154539,-460.0,0.0002315,2]
[372502652,1752663154550,-1360.67,0.0002315,2]
[372502653,1752663154562,-839.82,0.0002315,2]
[372502654,1752663154572,-473.28,0.0002315,2]
[372502655,1752663154583,-460.0,0.0002315,2]
[372502656,1752663154593,-691.75,0.0002315,2]
[372502657,1752663154603,-460.0,0.0002315,2]
[372502658,1752663154613,-517.48,0.0002315,2]
[372502659,1752663154623,-517.7,0.0002315,2]
[372502660,1752663154634,-1030.19,0.0002315,2]
[372502661,1752663154644,-1612.9,0.0002315,2]
[372502662,1752663154654,-497.86,0.0002315,2]
[372502663,1752663154665,-1319.17,0.0002315,2]
[372502664,1752663154675,-876.39,0.0002315,2]
[372502665,1752663154685,-1348.58,0.0002315,2]
[372502666,1752663154696,-460.0,0.0002315,2]
[372502667,1752663154706,-460.0,0.0002315,2]
[372502668,1752663154716,-460.0,0.0002315,2]
[372502669,1752663154727,-521.22,0.0002315,2]
[372502670,1752663154737,-900.25,0.0002315,2]
[372502671,1752663154747,-304.53021485,0.0002315,2]
[372502672,1752663154758,-460.0,0.0002315,2]
[372502673,1752663154769,-794.42,0.0002315,2]
[372502674,1752663154779,-460.0,0.0002315,2]
[372502675,1752663154790,-460.0,0.0002315,2]
[372502676,1752663154801,-460.0,0.0002315,2]
[372502677,1752663154811,-460.0,0.0002315,2]
[372502678,1752663154821,-671.7,0.0002315,2]
[372502679,1752663154831,-1426.38,0.0002315,2]
[372502680,1752663154842,-617.3,0.0002315,2]
[372502681,1752663154852,-460.0,0.0002315,2]
[372502682,1752663154863,-460.0,0.0002315,2]
[372502683,1752663154873,-3492.16,0.0002315,2]
[372502684,1752663154883,-960.48,0.0002315,2]
[372502685,1752663154893,-460.0,0.0002315,2]
[372502686,1752663154905,-697.02,0.0002315,2]
[372502687,1752663154915,-859.04,0.0002315,2]
[372502688,1752663154925,-460.0,0.0002315,2]
[372502689,1752663154936,-460.0,0.0002315,2]
[372502690,1752663154946,-578.96,0.0002315,2]
[372502691,1752663154957,-460.0,0.0002315,2]
[372502692,1752663154968,-737.1,0.0002315,2]
[372502693,1752663154980,-3159.42,0.0002315,2]
[372502694,1752663154991,-480.69,0.0002315,2]
[372502695,1752663155002,-658.34,0.0002315,2]
[372502696,1752663155012,-1247.6,0.0002315,2]
[372502697,1752663155023,-460.0,0.0002315,2]
[372502698,1752663155034,-460.0,0.0002315,2]
[372502699,1752663155045,-460.0,0.0002315,2]
[372502700,1752663155056,-1704.14,0.0002315,2]
[372502701,1752663155081,-889.84,0.0002315,2]
[372502702,1752663155094,-460.0,0.0002315,2]
[372502703,1752663155106,-460.0,0.0002315,2]
[372502704,1752663155118,-980.18,0.0002315,2]
[372502705,1752663155129,-864.4,0.0002315,2]
[372502706,1752663155140,-460.0,0.0002315,2]
[372502707,1752663155153,-460.0,0.0002315,2]
[372502708,1752663155164,-1337.4,0.0002315,2]
[372502709,1752663155176,-460.0,0.0002315,2]
[372502710,1752663155188,-538.85,0.0002315,2]
[372502711,1752663155200,-460.0,0.0002315,2]
[372502712,1752663155217,-460.0,0.0002315,2]
[372502713,1752663155229,-439.19,0.0002315,2]
[372502714,1752663155241,-770.68,0.0002315,2]
[372502715,1752663155254,-1191.07,0.0002315,2]
[372502716,1752663155265,-460.0,0.0002315,2]
[372502717,1752663155276,-1520.94,0.0002315,2]
[372502718,1752663155288,-460.0,0.0002315,2]
[372502719,1752663155300,-554.47,0.0002315,2]
[372502720,1752663155311,-460.0,0.0002315,2]
[372502721,1752663155323,-575.57,0.0002315,2]
[372502722,1752663155334,-540.41966995,0.0002315,2]
[372502723,1752663155346,-614.94,0.0002315,2]
[372502724,1752663155359,-508.9,0.0002315,2]
[372502725,1752663155371,-460.0,0.0002315,2]
[372502726,1752663155383,-2763.38,0.0002315,2]
[372502727,1752663155395,-508.1,0.0002315,2]
[372502728,1752663155412,-1649.66,0.0002315,2]
[372502729,1752663155426,-1198.93,0.0002315,2]
[372502730,1752663155440,-460.0,0.0002315,2]
[372502731,1752663155454,-1580.32,0.0002315,2]
[372502732,1752663155467,-1021.74,0.0002315,2]
[372502733,1752663155496,-460.0,0.0002315,2]
[372502734,1752663155524,-2741.41,0.0002315,2]